bitfinex-derivatives/quotes_ETHF0:USTF0_20250607
["timestamp","ask_amount","ask_price","bid_price","bid_amount"]
[1749290987143,0.80386,2486.7,2486.6,5.55588]
[1749290987429,0.80386,2486.7,2486.4,24.312]
[1749290987430,0.80392,2486.5,2486.4,0.80393]
[1749290988337,2.1568,2486.6,2486.5,0.80392]
[1749290992542,0.80392,2486.5,2486.4,0.06891172]
[1749290992840,2.19792,2486.5,2486.4,0.06891172]
[1749290993834,2.19792,2486.5,2486.4,0.87286172]
[1749290994643,2.19792,2486.5,2486.4,0.06891172]
[1749291001140,0.80392,2486.5,2486.4,0.87286172]
[1749291001538,1.3529,2486.6,2486.5,0.80392]
[1749291001848,1.49348,2486.6,2486.5,0.80392]
[1749291002351,0.80386,2486.7,2486.6,0.80387]
[1749291002545,0.80388,2486.6,2486.5,2.14029]
[1749291002748,0.80387,2486.7,2486.6,0.80388]
[1749291004146,0.80388,2486.6,2486.5,2.14029]
[1749291004347,0.80392,2486.5,2486.4,8.81664172]
[1749291004549,0.80392,2486.5,2486.4,4.80491172]
[1749291004740,0.80392,2486.5,2486.4,5.53995]
[1749291005351,0.80392,2486.5,2486.4,4.736]
[1749291005946,0.80392,2486.5,2486.4,5.53995]
[1749291006151,0.80392,2486.5,2486.4,4.736]
[1749291006744,0.80395,2486.4,2486.3,4.736]
[1749291007243,0.80398,2486.3,2486.2,4.736]
[1749291008237,0.80401,2486.2,2486.1,4.01183]
[1749291008442,1.44191,2486.2,2486.1,8.74783]
[1749291008840,0.6379,2486.2,2486.1,8.74783]
[1749291009445,1.44191,2486.2,2486.1,3.2078]
[1749291009748,1.44191,2486.2,2486.1,8.74784]
[1749291009945,0.80401,2486.2,2486.1,9.2604]
[1749291010146,0.80401,2486.2,2486.1,10.06444]
[1749291010347,0.80399,2486.3,2486.2,0.80399]
[1749291010544,0.80399,2486.3,2486.2,2.12059]
[1749291010746,0.80398,2486.4,2486.3,0.80397]
[1749291011250,0.80398,2486.3,2486.2,2.1206]
[1749291013645,0.80398,2486.3,2486.2,1.3166]
[1749291013951,0.80401,2486.2,2486.1,4.736]
[1749291014345,0.80401,2486.2,2486.1,5.54004]
[1749291015148,0.80401,2486.2,2486.1,4.736]
[1749291015749,0.80408,2486.0,2485.9,0.6376]
[1749291015946,0.80411,2485.9,2485.8,5.54013]
[1749291016139,0.80411,2485.9,2485.8,0.80413]
[1749291016346,0.80414,2485.8,2485.7,4.74202446]
[1749291016545,0.80414,2485.8,2485.7,0.00602446]
[1749291017751,0.80414,2485.8,2485.7,0.81019446]
[1749291018155,0.80414,2485.8,2485.7,0.00602446]
[1749291020048,0.80414,2485.8,2485.7,0.07493618]
[1749291020342,0.80414,2485.8,2485.7,0.87910618]
[1749291020550,0.80414,2485.8,2485.7,0.07493618]
[1749291020947,0.80414,2485.8,2485.7,0.87910618]
[1749291021851,0.80414,2485.8,2485.7,0.07493618]
[1749291022148,0.80414,2485.8,2485.7,0.87910618]
[1749291022348,1.44313,2485.9,2485.8,0.80414]
[1749291022850,0.80414,2485.8,2485.7,0.87908618]
[1749291023154,1.44313,2485.9,2485.8,0.80414]
[1749291023352,0.80414,2485.8,2485.7,0.87908618]
[1749291026053,0.80414,2485.8,2485.7,0.07493618]
[1749291026956,0.80414,2485.8,2485.7,1.34873618]
[1749291027157,0.80414,2485.8,2485.7,2.15290618]
[1749291027456,0.80414,2485.8,2485.7,1.34873618]
[1749291028860,0.80414,2485.8,2485.7,2.15290618]
[1749291029057,0.80412,2485.9,2485.8,0.80412]
[1749291029257,0.80412,2485.9,2485.8,1.2809]
[1749291029560,0.80414,2485.8,2485.7,3.28273618]
[1749291030454,0.80414,2485.8,2485.7,4.08689618]
[1749291032363,0.80414,2485.8,2485.7,3.28273618]
[1749291032659,0.80414,2485.8,2485.7,0.07493618]
[1749291033259,0.80414,2485.8,2485.7,0.00602446]
[1749291034159,0.80414,2485.8,2485.7,0.07493618]
[1749291035558,1.85571278,2485.8,2485.7,0.07493618]
[1749291035860,3.18431278,2485.8,2485.7,0.07493618]
[1749291037662,2.50031278,2485.8,2485.7,0.07493618]
[1749291037961,0.80414,2485.8,2485.7,0.07493618]
[1749291038260,0.80414,2485.8,2485.7,1.34173618]
[1749291038463,0.80414,2485.8,2485.7,2.03893618]
[1749291038865,0.80414,2485.8,2485.7,2.84310618]
[1749291039062,0.80414,2485.8,2485.7,2.03893618]
[1749291039965,3.8524,2486.0,2485.7,2.03893618]
[1749291040166,3.8524,2486.0,2485.8,1.3789]
[1749291040365,0.80411,2485.9,2485.8,1.3789]
[1749291040767,4.01179,2486.3,2486.2,0.80401]
[1749291040968,0.80402,2486.2,2486.1,0.80403]
[1749291041968,0.80402,2486.2,2486.0,2.18295]
[1749291042164,0.80402,2486.2,2486.1,0.80404]
[1749291042365,3.2078,2486.3,2486.2,0.80401]
[1749291042570,0.80398,2486.3,2486.2,5.52501]
[1749291043570,0.80397,2486.4,2486.2,5.52501]
[1749291043772,0.80397,2486.4,2486.3,1.3858]
[1749291045570,0.80397,2486.4,2486.3,2.18978]
[1749291045771,3.8944,2486.7,2486.3,1.3858]
[1749291045973,0.8039,2486.6,2486.5,0.80391]
[1749291046461,0.8039,2486.6,2486.5,5.52391]
[1749291046670,0.8039,2486.6,2486.5,4.72]
[1749291047163,0.8039,2486.6,2486.5,5.99]
[1749291048869,0.8039,2486.6,2486.3,4.72]
[1749291049066,0.80395,2486.4,2486.3,4.72]
[1749291050468,0.80395,2486.4,2486.3,5.52398]
[1749291050670,0.80395,2486.4,2486.3,4.72]
[1749291051875,0.80395,2486.4,2486.3,5.52398]
[1749291054872,0.6502,2486.4,2486.3,5.52398]
[1749291055279,4.01167,2486.7,2486.6,0.80388]
[1749291055877,0.80388,2486.6,2486.5,0.87282172]
[1749291056183,0.80388,2486.6,2486.5,0.06891172]
[1749291056382,1.45408,2486.6,2486.5,0.06891172]
[1749291058885,2.74508,2486.6,2486.5,0.06891172]
[1749291060192,3.79812734,2486.6,2486.5,0.06891172]
[1749291060484,8.79812734,2486.6,2486.5,0.06891172]
[1749291060687,0.80404,2486.1,2486.0,4.707]
[1749291060987,0.80408,2486.0,2485.9,5.51111]
[1749291061182,0.80408,2486.0,2485.9,0.80411]
[1749291061386,0.80411,2485.9,2485.8,4.708]
[1749291061889,0.80414,2485.8,2485.7,4.71402446]
[1749291062590,0.80414,2485.8,2485.7,0.00602446]
[1749291063087,2.76304,2485.8,2485.7,0.00602446]
[1749291063693,1.46074,2485.8,2485.7,0.00602446]
[1749291064786,1.46074,2485.8,2485.7,0.07493618]
[1749291066982,2.83904,2485.8,2485.7,0.07493618]
[1749291068383,3.8911368,2485.8,2485.7,0.07493618]
[1749291069687,2.83904,2485.8,2485.7,0.07493618]
[1749291071793,2.83904,2485.8,2485.7,0.00602446]
[1749291072088,1.46074,2485.8,2485.7,0.00602446]
[1749291072693,1.46074,2485.8,2485.7,0.07493618]
[1749291073389,2.81694,2485.8,2485.7,0.07493618]
[1749291075096,1.46074,2485.8,2485.7,0.07493618]
[1749291075997,0.80414,2485.8,2485.7,1.45893618]
[1749291077191,0.80414,2485.8,2485.7,2.26310618]
[1749291077385,0.80414,2485.8,2485.7,1.45893618]
[1749291077893,0.80414,2485.8,2485.7,2.26310618]
[1749291078090,0.80414,2485.8,2485.7,1.45893618]
[1749291080895,0.80414,2485.8,2485.7,1.39002446]
[1749291082595,0.80414,2485.8,2485.7,2.06602446]
[1749291084098,0.80414,2485.8,2485.7,2.13493618]
[1749291087297,0.80414,2485.8,2485.7,2.93910618]
[1749291087500,3.2078,2485.9,2485.8,0.80414]
[1749291087794,3.2078,2485.9,2485.8,2.17264]
[1749291088497,0.80406,2486.1,2486.0,0.80408]
[1749291088795,0.80403,2486.2,2486.1,0.80404]
[1749291088998,0.80406,2486.1,2486.0,0.80406]
[1749291089401,0.80403,2486.2,2486.1,0.80403]
[1749291089596,1.85818669,2486.2,2486.1,0.80403]
[1749291089999,1.85818669,2486.2,2486.1,2.12303]
[1749291090199,1.85818669,2486.2,2486.1,1.319]
[1749291091302,0.80403,2486.2,2486.1,1.319]
[1749291092010,1.85723102,2486.2,2486.1,1.319]
[1749291092204,0.80403,2486.2,2486.1,1.319]
[1749291093404,0.80403,2486.2,2486.1,2.12304]
[1749291094402,0.80403,2486.2,2486.1,1.319]
[1749291094807,0.80403,2486.2,2486.1,2.12304]
[1749291096110,0.80403,2486.2,2486.1,2.19195172]
[1749291099399,0.80403,2486.2,2486.1,2.86715172]
[1749291101309,3.8965,2486.5,2486.1,2.06311172]
[1749291101510,3.2078,2486.5,2486.4,0.80395]
[1749291102106,3.2078,2486.5,2486.4,1.44785]
[1749291111220,3.2078,2486.5,2486.4,1.51676172]
[1749291113315,0.00602446,2487.0,2486.9,0.80379]
[1749291113916,0.00602446,2487.0,2486.9,2.09759]
[1749291114215,0.00602446,2487.0,2486.9,2.73009]
[1749291118019,0.00602446,2487.0,2486.9,2.09759]
[1749291120824,0.00602446,2487.0,2486.9,0.80379]
[1749291133929,0.00602446,2487.0,2486.9,2.20199]
[1749291134734,0.00602446,2487.0,2486.9,0.80379]
[1749291139738,3.2078,2487.8,2487.6,0.80353]
[1749291140040,0.80358,2487.6,2487.5,0.80358]
[1749291141942,1.3272,2487.7,2487.6,0.80356]
[1749291143242,2.13073,2487.7,2487.6,0.80356]
[1749291143742,1.3272,2487.7,2487.6,0.80356]
[1749291144445,2.13073,2487.7,2487.6,0.80356]
[1749291145042,2.13075,2487.7,2487.6,0.80356]
[1749291149238,0.80356,2487.6,2487.5,4.682]
[1749291149441,2.13456,2487.6,2487.5,4.682]
[1749291155548,3.1907573,2487.6,2487.5,4.682]
[1749291156250,3.1907573,2487.6,2487.5,5.48559]
[1749291156548,1.8597573,2487.6,2487.5,5.48559]
[1749291157744,1.8597573,2487.6,2487.5,4.682]
[1749291161048,5.0675573,2487.6,2487.5,4.682]
[1749291163152,5.0675573,2487.6,2487.5,5.48559]
[1749291163453,5.0675573,2487.6,2487.5,4.682]
[1749291163946,5.0675573,2487.6,2487.5,5.48559]
[1749291164149,1.8597573,2487.6,2487.5,5.48559]
[1749291164752,1.8597573,2487.6,2487.5,4.682]
[1749291165747,0.80356,2487.6,2487.5,4.682]
[1749291165954,1.85947391,2487.6,2487.5,4.682]
[1749291167656,1.85947391,2487.6,2487.5,5.48559]
[1749291168357,0.80356,2487.6,2487.5,5.48559]
[1749291168756,4.01136,2487.6,2487.5,4.682]
[1749291169258,4.01136,2487.6,2487.5,5.48559]
[1749291170161,5.06730186,2487.6,2487.5,4.682]
[1749291172859,1.85950186,2487.6,2487.5,4.682]
[1749291175648,1.85950186,2487.6,2487.5,5.48559]
[1749291175850,1.85950186,2487.6,2487.5,4.682]
[1749291179557,0.80359,2487.5,2487.4,0.8036]
[1749291179758,1.85953186,2487.5,2487.4,0.8036]
[1749291180160,1.85953186,2487.5,2487.4,2.1211]
[1749291181363,1.85953186,2487.5,2487.4,1.3175]
[1749291181557,0.80359,2487.5,2487.4,1.3175]
[1749291181958,1.8632192,2487.5,2487.4,1.3175]
[1749291182360,1.86322776,2487.5,2487.4,2.12112]
[1749291182668,0.80359,2487.5,2487.4,2.12112]
[1749291182861,1.86323217,2487.5,2487.4,2.12112]
[1749291183058,0.80359,2487.5,2487.4,2.12112]
[1749291183759,1.86289181,2487.5,2487.4,2.12112]
[1749291183956,0.80363,2487.4,2487.3,5.47366446]
[1749291184160,2.50423181,2487.4,2487.3,5.47366446]
[1749291184668,2.50423181,2487.4,2487.3,4.67002446]
[1749291184859,5.71203181,2487.4,2487.3,0.00602446]
[1749291187561,1.05930181,2487.4,2487.3,5.39248446]
[1749291187761,3.8421,2487.7,2487.6,0.80356]
[1749291187961,4.90048343,2487.7,2487.6,0.80356]
[1749291188267,5.70403343,2487.7,2487.6,0.80356]
[1749291189269,0.80359,2487.6,2487.5,0.80359]
[1749291189570,4.64567,2487.7,2487.6,0.80358]
[1749291189772,5.71099148,2487.7,2487.6,0.80358]
[1749291189971,0.80358,2487.6,2487.5,2.10639]
[1749291191172,4.64566,2487.7,2487.6,0.80358]
[1749291191472,5.71083085,2487.7,2487.6,0.80358]
[1749291192573,3.2078,2487.7,2487.6,0.80358]
[1749291193072,4.01134,2487.7,2487.6,0.80358]
[1749291193282,3.2078,2487.7,2487.6,2.17478]
[1749291193582,3.2078,2487.7,2487.6,6.82878]
[1749291194278,0.00602446,2487.8,2487.7,0.80354]
[1749291194478,0.00602446,2487.8,2487.7,2.83254]
[1749291194883,0.80952446,2487.8,2487.7,2.83254]
[1749291195183,0.00602446,2487.8,2487.7,2.83254]
[1749291195785,0.80952446,2487.8,2487.7,2.83254]
[1749291196180,0.00602446,2487.8,2487.7,2.83254]
[1749291197678,0.80952446,2487.8,2487.7,2.83254]
[1749291198681,0.00602446,2487.8,2487.7,2.83254]
[1749291199183,0.80951446,2487.8,2487.7,2.83254]
[1749291203783,0.80951446,2487.8,2487.7,2.17473]
[1749291204879,0.00602446,2487.8,2487.7,2.17473]
[1749291205485,0.80952446,2487.8,2487.7,2.17473]
[1749291206286,0.00602446,2487.8,2487.7,2.17473]
[1749291207384,0.80952446,2487.8,2487.7,2.17473]
[1749291207884,0.00602446,2487.8,2487.7,2.17473]
[1749291216683,3.2078,2488.4,2487.7,6.3712]
[1749291216889,3.2078,2488.4,2488.1,0.80338]
[1749291216890,0.8034,2488.2,2488.1,0.80338]
[1749291217086,1.8688613,2488.2,2488.1,0.80338]
[1749291217892,1.0654613,2488.2,2488.0,4.653]
[1749291218095,0.8034,2488.1,2488.0,4.653]
[1749291218795,1.86945421,2488.1,2488.0,4.653]
[1749291218994,0.8034,2488.1,2488.0,4.653]
[1749291219292,0.8034,2488.1,2488.0,5.45643]
[1749291219593,1.86945467,2488.1,2488.0,5.45643]
[1749291221893,0.8034,2488.1,2488.0,5.45643]
[1749291222093,0.80337,2488.2,2488.1,0.80336]
[1749291222288,1.87017326,2488.2,2488.1,0.80336]
[1749291222690,1.06680326,2488.2,2488.1,0.80336]
[1749291222897,0.80335,2488.3,2488.2,0.80336]
[1749291223099,0.80335,2488.3,2488.1,0.80337]
[1749291223100,0.80338,2488.2,2488.1,0.80337]
[1749291224496,0.8034,2488.1,2488.0,5.45641]
[1749291224702,0.80339,2488.2,2488.1,0.80338]
[1749291226398,0.8034,2488.1,2488.0,5.45641]
[1749291227999,0.80339,2488.2,2488.1,0.80337]
[1749291242412,1.48935,2488.3,2488.2,0.80336]
[1749291242612,2.55852993,2488.3,2488.2,0.80336]
[1749291247715,1.75517993,2488.3,2488.2,0.80336]
[1749291248605,2.55850993,2488.3,2488.2,0.80336]
[1749291250319,1.75517993,2488.3,2488.2,0.80336]
[1749291250511,2.55850993,2488.3,2488.2,0.80336]
[1749291253019,0.8034,2488.2,2488.1,0.80338]
[1749291253218,1.87331369,2488.2,2488.1,0.80338]
[1749291253515,0.8034,2488.2,2488.1,0.80338]
[1749291253920,1.48935,2488.3,2488.2,0.80336]
[1749291254220,1.0699212,2488.3,2488.2,0.80336]
[1749291254424,0.0040163,2488.4,2488.3,0.80333]
[1749291254608,0.0040163,2488.4,2488.3,6.75773]
[1749291254812,0.0040163,2488.4,2488.3,7.40323]
[1749291255111,0.0040163,2488.4,2488.3,8.09653]
[1749291257115,3.2078,2488.8,2488.3,13.09653]
[1749291257322,4.01097,2488.8,2488.7,0.8032]
[1749291258518,3.2078,2488.8,2488.7,0.8032]
[1749291260122,4.01097,2488.8,2488.7,0.8032]
[1749291260317,3.2078,2488.8,2488.7,0.8032]
[1749291260826,3.2078,2488.8,2488.7,2.1863]
[1749291262626,0.6414,2488.9,2488.8,0.80317]
[1749291263326,1.44454,2488.9,2488.8,0.80317]
[1749291263627,0.6414,2488.9,2488.8,0.80317]
[1749291263927,1.44454,2488.9,2488.8,0.80317]
[1749291265121,0.6414,2488.9,2488.8,0.80317]
[1749291266326,1.44454,2488.9,2488.8,0.80317]
[1749291267528,0.6414,2488.9,2488.8,0.80317]
[1749291271322,0.6759,2489.1,2488.7,0.6602]
[1749291271323,1.479,2489.1,2489.0,0.80311]
[1749291272335,0.80311,2489.0,2488.9,5.45412]
[1749291273533,1.47899,2489.1,2489.0,0.80311]
[1749291273833,0.80311,2489.0,2488.9,5.45411]
[1749291274330,1.47899,2489.1,2489.0,0.80311]
[1749291275932,0.6729,2489.2,2489.1,0.80307]
[1749291276136,3.2078,2489.4,2489.3,0.80301]
[1749291276638,0.80295,2489.5,2489.4,0.80298]
[1749291276835,4.01066,2489.8,2489.7,0.80288]
[1749291277039,0.8029,2489.7,2489.6,0.80291]
[1749291277837,0.80288,2489.7,2489.6,0.80291]
[1749291278040,0.80289,2489.7,2489.5,4.651]
[1749291278241,0.80289,2489.7,2489.6,0.80289]
[1749291279038,0.80291,2489.6,2489.5,5.45392]
[1749291279238,1.46041,2489.6,2489.5,5.45392]
[1749291279836,0.6575,2489.6,2489.5,5.45392]
[1749291282340,0.8029,2489.7,2489.6,0.80291]
[1749291282539,0.7009,2489.8,2489.7,0.80288]
[1749291283949,1.50375,2489.8,2489.7,0.80288]
[1749291286152,0.7009,2489.8,2489.7,0.80288]
[1749291286749,1.50375,2489.8,2489.7,0.80288]
[1749291287045,0.7009,2489.8,2489.7,0.80288]
[1749291287654,0.7009,2489.8,2489.7,2.17808]
[1749291289851,0.06891172,2489.8,2489.7,2.17808]
[1749291292652,0.06891172,2489.8,2489.7,5.38588]
[1749291295850,3.40116,2490.4,2489.7,5.38588]
[1749291295851,3.2078,2490.8,2489.7,9.583]
[1749291296047,3.2078,2490.8,2490.0,0.00602446]
[1749291296048,3.2078,2490.5,2490.0,0.00602446]
[1749291296246,0.80271,2490.3,2490.1,0.80274]
[1749291296454,0.80271,2490.3,2490.2,4.649]
[1749291296952,0.80267,2490.4,2490.3,0.80268]
[1749291297957,1.45977,2490.4,2490.3,0.80268]
[1749291298152,0.6571,2490.4,2490.3,0.80268]
[1749291299257,1.45975,2490.4,2490.3,0.80268]
[1749291300453,1.45975,2490.4,2490.2,4.649]
[1749291300454,0.80269,2490.3,2490.2,4.649]
[1749291300851,2.19039,2490.3,2490.2,4.649]
[1749291301159,0.80272,2490.2,2490.1,0.80274]
[1749291301659,2.19041,2490.3,2490.2,0.80272]
[1749291302159,3.2078,2490.5,2490.4,0.80265]
[1749291302160,0.80262,2490.5,2490.4,0.80265]
[1749291302661,0.80261,2490.6,2490.5,0.80261]
[1749291302856,0.80264,2490.5,2490.4,0.80264]
[1749291303257,0.80262,2490.6,2490.5,0.80261]
[1749291303558,1.3632,2490.7,2490.4,0.80263]
[1749291303559,0.80263,2490.5,2490.4,0.80263]
[1749291304164,0.80261,2490.6,2490.5,0.80261]
[1749291304458,0.80263,2490.5,2490.4,0.80264]
[1749291304962,0.87154172,2490.5,2490.4,0.80264]
[1749291305963,0.06891172,2490.5,2490.4,0.80264]
[1749291307065,0.87153172,2490.5,2490.4,0.80264]
[1749291307467,0.06891172,2490.5,2490.4,0.80264]
[1749291307868,0.87153172,2490.5,2490.4,0.80264]
[1749291308169,0.06891172,2490.5,2490.4,0.80264]
[1749291308668,0.87153172,2490.5,2490.4,0.80264]
[1749291309167,0.06891172,2490.5,2490.4,0.80264]
[1749291309667,0.74991172,2490.5,2490.4,0.80264]
[1749291310563,0.06891172,2490.5,2490.4,0.80264]
[1749291310963,0.06891172,2490.5,2490.4,2.13964]
[1749291312466,1e-08,2490.5,2490.4,5.34744]
[1749291312768,1e-08,2490.5,2490.0,2.01296446]
[1749291312769,0.80275,2490.1,2490.0,0.00602446]
[1749291312968,4.01055,2490.1,2490.0,0.00602446]
[1749291313169,3.2078,2490.1,2490.0,0.80880446]
[1749291313369,3.2078,2490.1,2490.0,0.00602446]
[1749291313671,4.01055,2490.1,2490.0,0.00602446]
[1749291314571,3.2078,2490.1,2490.0,0.80880446]
[1749291314773,4.01055,2490.1,2490.0,0.00602446]
[1749291315068,4.69525,2490.1,2490.0,0.00602446]
[1749291316365,4.69525,2490.1,2490.0,0.80880446]
[1749291316673,4.69525,2490.1,2490.0,0.00602446]
[1749291318270,0.6847,2490.1,2490.0,0.80880446]
[1749291319170,1.48745,2490.1,2490.0,0.80880446]
[1749291319577,0.6847,2490.1,2490.0,0.80880446]
[1749291321074,0.75361172,2490.1,2490.0,0.80880446]
[1749291322770,0.75361172,2490.1,2490.0,2.07700446]
[1749291323672,0.06891172,2490.1,2490.0,2.07700446]
[1749291325468,1.72e-06,2490.1,2490.0,2.07700446]
[1749291325661,1.72e-06,2490.1,2490.0,7.07700446]
[1749291331973,0.8024,2491.2,2491.1,0.80243]
[1749291332175,9.0951775,2491.4,2491.2,0.8024]
[1749291332176,6.73128,2491.3,2491.2,0.8024]
[1749291332374,0.80241,2491.2,2491.1,0.80241]
[1749291332678,3.28404641,2491.2,2491.1,0.80243]
[1749291333171,3.28403641,2491.2,2491.1,0.80243]
[1749291333373,2.48163641,2491.2,2491.1,0.80243]
[1749291333576,1.3898,2491.2,2491.1,0.80243]
[1749291334072,2.48104285,2491.2,2491.1,0.80243]
[1749291334274,2.26111172,2491.2,2491.1,0.80243]
[1749291334669,1.45871172,2491.2,2491.1,0.80243]
[1749291334869,2.26111172,2491.2,2491.1,0.80243]
[1749291335175,1.45871172,2491.2,2491.1,0.80243]
[1749291335674,2.26111172,2491.2,2491.1,0.80243]
[1749291336972,0.80245,2491.1,2491.0,0.80244]
[1749291337173,2.17225,2491.1,2491.0,0.80244]
[1749291337669,1.3698,2491.1,2491.0,0.80244]
[1749291337976,2.17223,2491.1,2491.0,0.80244]
[1749291338279,1.3698,2491.1,2491.0,0.80244]
[1749291338981,2.17223,2491.1,2491.0,0.80244]
[1749291339179,1.3698,2491.1,2491.0,0.80244]
[1749291340077,2.17223,2491.1,2491.0,0.80244]
[1749291340378,1.3698,2491.1,2491.0,0.80244]
[1749291340878,2.17223,2491.1,2491.0,0.80244]
[1749291341073,0.80246,2491.0,2490.9,4.71]
[1749291341279,2.00624,2490.9,2490.5,5.51261]
[1749291341576,3.2078,2490.7,2490.6,0.80259]
[1749291341781,2.85105,2490.8,2490.7,0.80256]
[1749291341971,4.70675,2490.8,2490.7,0.80256]
[1749291342281,0.6964,2490.8,2490.7,0.80256]
[1749291342771,0.6964,2490.8,2490.7,4.01036]
[1749291343072,0.656,2491.0,2490.9,0.80249]
[1749291348381,1.45846,2491.0,2490.9,0.80249]
[1749291348681,0.656,2491.0,2490.9,0.80249]
[1749291350692,0.72491172,2491.0,2490.9,0.80249]
[1749291351485,1.52737172,2491.0,2490.9,0.80249]
[1749291351686,1.52740172,2491.0,2490.9,0.80249]
[1749291351885,1.52740172,2491.0,2490.7,0.80254]
[1749291351886,0.80255,2490.8,2490.7,0.80254]
[1749291352188,4.01035,2490.8,2490.7,0.80254]
[1749291352381,3.2078,2490.8,2490.7,0.80254]
[1749291353089,0.80251,2490.9,2490.8,0.80252]
[1749291353287,1.8949621,2490.9,2490.8,0.80252]
[1749291354185,3.2168621,2490.9,2490.8,0.80252]
[1749291354674,3.2168421,2490.9,2490.8,0.80252]
[1749291355984,0.80259,2490.6,2490.5,4.71]
[1749291357086,3.23547972,2490.6,2490.5,4.71]
[1749291357990,0.80265,2490.5,2490.4,0.80265]
[1749291358196,3.23553972,2490.5,2490.4,0.80265]
[1749291360393,0.80265,2490.4,2490.3,5.51267]
[1749291360596,1.45715,2490.4,2490.3,5.51267]
[1749291362689,0.6545,2490.4,2490.3,5.51267]
[1749291365295,0.6689,2490.7,2490.6,0.80259]
[1749291365589,0.80253,2490.9,2490.5,2.00655]
[1749291365797,1.89457531,2490.8,2490.7,0.80256]
[1749291366788,2.13489,2491.0,2490.9,0.80249]
[1749291366990,3.22677622,2491.0,2490.9,0.80249]
[1749291367389,3.22674622,2491.0,2490.9,0.80249]
[1749291368097,0.80251,2490.9,2490.8,0.80249]
[1749291369497,1.3324,2491.0,2490.9,0.80249]
[1749291369498,2.13488,2491.0,2490.9,0.80249]
[1749291369697,3.22652922,2491.0,2490.9,0.80249]
[1749291369996,0.8025,2490.9,2490.8,0.8025]
[1749291370194,2.13488,2491.0,2490.9,0.80249]
[1749291370394,3.22656324,2491.0,2490.9,0.80249]
[1749291370594,3.22654324,2491.0,2490.9,0.80249]
[1749291371198,0.8025,2490.9,2490.8,0.8025]
[1749291372599,1.3324,2491.0,2490.6,5.3389]
[1749291372794,0.80256,2490.7,2490.6,4.697]
[1749291373498,0.80256,2490.7,2490.6,5.49959]
[1749291376493,1.3324,2491.0,2490.5,4.697]
[1749291376698,1.89460401,2490.9,2490.8,0.80249]
[1749291376903,0.80254,2490.8,2490.7,0.80253]
[1749291379198,1.8945228,2490.8,2490.7,0.80253]
[1749291379792,1.96343452,2490.8,2490.7,0.80253]
[1749291381807,0.80258,2490.7,2490.6,2.17059]
[1749291382103,1.47548,2490.7,2490.6,1.368]
[1749291382901,0.80261,2490.6,2490.5,6.14022]
[1749291383102,0.80264,2490.5,2490.4,3.2078]
[1749291383303,0.80267,2490.4,2490.3,5.991]
[1749291383698,1.47277,2490.4,2490.3,5.991]
[1749291384504,1.47277,2490.4,2490.3,6.7937]
[1749291384702,1.47277,2490.4,2490.3,4.697]
[1749291385305,0.80273,2490.2,2490.1,5.49974]
[1749291386102,0.80273,2490.2,2490.1,6.80094]
[1749291388804,0.80273,2490.2,2490.1,5.9982]
[1749291389200,0.80276,2490.1,2490.0,0.00602446]
[1749291389406,1.46656,2490.1,2490.0,4.70302446]
[1749291390707,1.46656,2490.1,2490.0,5.50581446]
[1749291392004,3.2078,2490.5,2490.4,0.80265]
[1749291392211,0.80267,2490.4,2490.3,0.80266]
[1749291392506,0.80267,2490.4,2490.3,5.49966]
[1749291392910,0.80267,2490.4,2490.3,6.84526]
[1749291393308,0.80267,2490.4,2490.3,6.0426]
[1749291394313,0.80267,2490.4,2490.3,6.84528]
[1749291396814,0.87155172,2490.5,2490.4,0.80265]
[1749291397009,0.80265,2490.4,2490.3,6.84526]
[1749291397716,0.80265,2490.4,2490.3,6.0426]
[1749291399018,0.87154172,2490.5,2490.3,6.0426]
[1749291399209,0.06891172,2490.5,2490.4,0.80265]
[1749291399408,0.06891172,2490.5,2490.4,2.16925]
[1749291399914,0.87153172,2490.5,2490.4,2.16925]
[1749291400614,1.72e-06,2490.5,2490.4,2.16925]
[1749291400912,3.2078,2491.9,2491.6,0.80225]
[1749291401114,1.09000101,2491.8,2491.7,1.3666]
[1749291401509,0.6655,2492.1,2491.7,1.3666]
[1749291401712,1.46762,2492.1,2491.7,2.16882]
[1749291402118,0.6655,2492.1,2491.8,0.8022]
[1749291402319,0.98321842,2492.1,2491.8,2.1326]
[1749291402616,0.6655,2492.1,2491.8,2.1326]
[1749291402806,3.2078,2493.0,2491.9,8.4608]
[1749291403013,1.06138814,2492.9,2492.3,3.2078]
[1749291403222,3.2078,2493.0,2492.4,1.3304]
[1749291403424,0.80186,2492.9,2492.5,0.80196]
[1749291403718,3.2078,2493.0,2492.4,1.3304]
[1749291403906,3.2078,2493.0,2492.5,0.80196]
[1749291403907,0.80186,2492.9,2492.5,0.80196]
[1749291404108,3.2078,2493.0,2492.4,6.5824]
[1749291404413,3.2078,2493.0,2492.4,5.252]
[1749291404922,3.2078,2492.9,2492.5,0.80195]
[1749291405118,3.2078,2492.9,2492.5,2.14525]
[1749291405323,3.2078,2492.9,2492.3,8.4598]
[1749291405618,2.14759,2492.8,2492.4,0.80199]
[1749291405814,1.3457,2492.8,2492.4,0.80199]
[1749291406217,1.3457,2492.8,2492.5,0.80197]
[1749291406522,3.2078,2492.9,2492.6,0.80194]
[1749291407020,3.2078,2492.9,2492.5,0.80196]
[1749291407322,4.00967,2492.9,2492.5,0.80196]
[1749291407620,4.00967,2492.9,2492.4,2.14529]
[1749291407820,4.00967,2492.9,2492.5,0.80197]
[1749291408020,3.2078,2492.9,2492.5,0.80197]
[1749291408222,4.00966,2492.9,2492.5,0.80197]
[1749291408618,0.80189,2492.8,2492.3,3.2078]
[1749291408921,4.00966,2492.9,2492.4,2.19189]
[1749291409214,0.06891172,2492.9,2492.6,4.00973]
[1749291409421,0.06891172,2492.9,2492.7,1.3899]
[1749291409624,0.06891172,2492.9,2492.7,2.19179]